fUSD/lending_fUSD_20250124
["ID","MTS","AMOUNT","RATE_DAILY","PERIOD"]
[350195231,1737682250654,-151.0,0.00018799,2]
[350195232,1737682250663,-151.0,0.00018799,2]
[350195233,1737682250674,-151.0,0.00018799,2]
[350195234,1737682250683,-305.525067,0.00018799,2]
[350195235,1737682250694,-305.525067,0.00018799,2]
[350195236,1737682250703,-151.0,0.00018799,2]
[350195237,1737682250714,-151.0,0.00018799,2]
[350195238,1737682250724,-770481.27676748,0.00018799,2]
[350195239,1737682250911,-1210.55117983,0.00018799,2]
[350195240,1737682250923,-5992.79513547,0.00018799,2]
[350195241,1737682250936,-5731.21,0.00018799,2]
[350195242,1737682250947,-715.80519341,0.00018799,2]
[350195243,1737682250959,-1426.34946342,0.00018799,2]
[350195244,1737682250971,-7492.74809411,0.00018799,2]
[350195245,1737682250996,-500.0,0.00018073,2]
[350195246,1737682251006,-500.0,0.00018074,2]
[350195247,1737682251016,-2023.83436659,0.00018799,2]
[350195248,1737682251062,-2019.0,0.00018309,2]
[350195249,1737682251071,-542.63406579,0.00018348,2]
[350195250,1737682251082,-10.44898922,0.00018348,2]
[350195251,1737682251091,-3291.85001077,0.00018799,2]
[350195252,1737682251103,-13040.97657437,0.00018799,2]
[350195253,1737682251270,-564.08933901,0.000178,2]
[350195254,1737682251280,-500.0,0.00018347,2]
[350195255,1737682251291,-500.0,0.00018621,2]
[350195256,1737682251301,-151.0,0.000187,2]
[350195257,1737682251311,-151.761773,0.00018799,2]
[350195258,1737682251320,-1680.90311379,0.00018799,2]
[350195259,1737682251494,-675.07,0.00015465,2]
[350195260,1737682251504,-1000.0,0.00017428,2]
[350195261,1737682251514,-97.14573417,0.00017729,2]
[350195262,1737682251569,-577.92426583,0.00017729,2]
[350195263,1737682251579,-500.0,0.00018068,2]
[350195264,1737682251588,-150.0,0.00018409,2]
[350195265,1737682251598,-150.0,0.00018414,2]
[350195266,1737682251608,-150.0,0.00018554,2]
[350195267,1737682251619,-150.0,0.00018578,2]
[350195268,1737682251628,-150.0,0.00018597,2]
[350195269,1737682251638,-64.64187495,0.00018655,2]
[350195270,1737682251649,-85.35812505,0.00018655,2]
[350195271,1737682251659,-150.0,0.00018655,2]
[350195272,1737682251672,-150.0,0.00018675,2]
[350195273,1737682251681,-150.0,0.00018676,2]
[350195274,1737682251690,-4535.99551937,0.00018799,2]
[350195275,1737682251703,-3910.76,0.00018799,2]
[350195276,1737682352056,186.43,0.00022,120]
[350195281,1737682982501,173.4,0.00022,120]
[350195282,1737683331348,1500.0,0.00022,120]
[350195285,1737683432021,-550.0,0.00015,2]
[350195286,1737683432030,-681.58,0.00015538,2]
[350195287,1737683432042,-1917.94318476,0.00016575,2]
[350195288,1737683432051,-1917.94318476,0.00016581,2]
[350195289,1737683432061,-200.0,0.00016603,2]
[350195290,1737683432070,-1917.94318476,0.00016617,2]
[350195291,1737683432080,-1917.94318476,0.00016668,2]
[350195292,1737683432089,-1917.94318476,0.0001667,2]
[350195293,1737683432099,-200.0,0.00016675,2]
[350195294,1737683432109,-600.0,0.00017,2]
[350195295,1737683432119,-393.17,0.00017301,2]
[350195296,1737683432128,-250.0,0.00017376,2]
[350195297,1737683432139,-200.0,0.00017442,2]
[350195298,1737683432148,-198.75,0.00017474,2]
[350195299,1737683432158,-3737.24500515,0.00017474,2]
[350195300,1737683432169,-1132.87600634,0.00017474,2]
[350195301,1737683432180,-1573.06120438,0.00017474,2]
[350195302,1737683432189,-70.85501021,0.00017485,2]
[350195303,1737683432201,-929.14498979,0.00017485,2]
[350195304,1737683432211,-168.73,0.00017522,2]
[350195305,1737683432220,-250.0,0.0001753,2]
[350195306,1737683432230,-11.12500958,0.00017534,2]
[350195307,1737683432247,-138.87499042,0.00017534,2]
[350195308,1737683432257,-159.01133372,0.00017551,2]
[350195309,1737683432267,-750.37477044,0.00017551,2]
[350195310,1737683432282,-1646.98389584,0.00017551,2]
[350195311,1737683432292,-155.66,0.00017721,30]
[350195312,1737683432301,-188.92747533,0.00017791,2]
[350195313,1737683432310,-501.78095657,0.00017791,2]
[350195314,1737683432321,-274.82570305,0.00017791,2]
[350195315,1737683432330,-491.76149107,0.00017791,2]
[350195316,1737683432347,-8.23850893,0.00017791,2]
[350195317,1737683432357,-518.91145899,0.00017799,2]
[350195318,1737683432366,-518.36351638,0.00017799,2]
[350195319,1737683432376,-453.27122197,0.00017799,2]
[350195320,1737683432386,-500.0,0.00017799,2]
[350195321,1737683432395,-516.47409947,0.00017799,2]
[350195322,1737683432404,-500.0,0.00017799,2]
[350195323,1737683432413,-500.0,0.00017799,2]
[350195324,1737683432422,-511.55288951,0.00017799,2]
[350195325,1737683432431,-514.21466455,0.00017799,2]
[350195326,1737683432440,-500.0,0.00017799,2]
[350195327,1737683432449,-500.0,0.00017799,2]
[350195328,1737683432459,-500.0,0.00017799,2]
[350195329,1737683432468,-681.58,0.00017802,2]
[350195330,1737683432478,-161.043,0.0001786,2]
[350195331,1737683432487,-152.0,0.00017893,3]
[350195332,1737683432497,-500.0,0.00018065,2]
[350195333,1737683432507,-500.0,0.00018068,2]
[350195334,1737683432516,-900.0,0.00018068,2]
[350195335,1737683432525,-418.52718537,0.00018072,2]
[350195336,1737683432545,-619.41581463,0.00018072,2]
[350195337,1737683432555,-500.0,0.00018073,2]
[350195339,1737683432564,-253.20692757,0.00018073,2]
[350195341,1737683432575,-266.69412599,0.00018073,2]
[350195343,1737683432583,-516.08575899,0.00018073,2]
[350195345,1737683432592,-329.02174244,0.00018073,2]
[350195347,1737683432603,-517.963216,0.00018073,2]
[350195349,1737683432612,-512.79787806,0.00018073,2]
[350195351,1737683432621,-438.85,0.00018082,2]
[350195353,1737683432630,-2019.0,0.00018291,2]
[350195355,1737683432640,-782.90746396,0.00018291,2]
[350195382,1737683438249,-255.97,0.00017747,2]
[350195383,1737683438259,-487.09253604,0.00018291,2]
[350195384,1737683438268,-150.531,0.00018291,2]
[350195385,1737683438277,-639.647,0.00018291,2]
[350195386,1737683438287,-569.778,0.00018291,2]
[350195387,1737683438297,-663.05394414,0.00018291,2]
[350195388,1737683438397,-1208.04905586,0.00018291,2]
[350195390,1737683438406,-1261.0,0.00018291,2]
[350195391,1737683438416,-908.0,0.00018291,2]
[350195392,1737683438426,-2959.387,0.00018291,2]
[350195393,1737683438435,-782.0,0.00018291,2]
[350195394,1737683438444,-3996.46,0.00018291,2]
[350195395,1737683438454,-150.549,0.00018291,2]
[350195396,1737683438463,-538.0,0.00018291,2]
[350195397,1737683438472,-3121.49625704,0.00018291,2]
[350195413,1737683446267,-645.37942818,0.00018291,2]
[350195433,1737683791088,283.8,0.00010137,2]
[350195435,1737684360283,186.35,0.00022003,120]
[350195437,1737684438029,155.66,0.00016658,30]
[350195452,1737684632151,-683.96,0.00014823,2]
[350195454,1737684632160,-1319.17,0.00015,2]
[350195456,1737684632171,-200.0,0.00016095,2]
[350195458,1737684632181,-289.3,0.00016256,2]
[350195460,1737684632190,-250.0,0.00016333,2]
[350195462,1737684632199,-250.0,0.00016372,2]
[350195464,1737684632209,-150.29,0.00016384,2]
[350195466,1737684632218,-397.0,0.00016436,2]
[350195468,1737684632228,-26581.30900466,0.00016437,2]
[350195470,1737684632237,-439.43446635,0.00016437,2]
[350195471,1737684632246,-200.0,0.00016569,2]
[350195472,1737684632256,-578.69118681,0.00016569,2]
[350195473,1737684632265,-578.69118681,0.00016583,2]
[350195474,1737684632275,-578.69118681,0.00016606,2]
[350195475,1737684632283,-200.0,0.00016655,2]
[350195476,1737684632293,-578.69118681,0.00016679,2]
[350195477,1737684632302,-578.69118681,0.0001668,2]
[350195478,1737684632312,-200.0,0.00016684,2]
[350195479,1737684632321,-276.47,0.00016692,2]
[350195480,1737684632330,-200.0,0.00016713,2]
[350195481,1737684632340,-529.85,0.00016759,2]
[350195482,1737684632349,-250.0,0.00016764,2]
[350195483,1737684632359,-283.8,0.00016813,2]
[350195484,1737684632368,-5000.0,0.000169,2]
[350195485,1737684632377,-2500.0,0.000169,2]
[350195486,1737684632387,-502.22774117,0.000169,2]
[350195487,1737684632397,-635.78436238,0.000169,2]
[350195488,1737684632406,-1736.26183541,0.000169,2]
[350195489,1737684632417,-303.0,0.00016973,2]
[350195490,1737684632427,-56728.68665598,0.00016999,2]
[350195491,1737684632443,-390709.57359525,0.00016999,2]
[350195492,1737684637376,-5298.16300238,0.00016999,2]
[350195493,1737684637402,-600.42625278,0.00016999,2]
[350195494,1737684637468,-747.34999,0.00016999,2]
[350195495,1737684637480,-439.05177954,0.00016999,2]
[350195496,1737684637548,-3700.0,0.00016999,2]
[350195497,1737684637560,-307.100003,0.00016999,2]
[350195501,1737684638179,-1000.0,0.00016793,2]
[350195502,1737684638190,-131115.30493332,0.00016999,2]
[350195503,1737684638202,-629.55932265,0.00016999,2]
[350195504,1737684638285,-15407.10376283,0.00016999,2]
[350195505,1737684638297,-21352.9479658,0.00016999,2]
[350195506,1737684638309,-242495.30382238,0.00016999,2]
[350195507,1737684638321,-20266.43153588,0.00016999,2]
[350195508,1737684638330,-500.0,0.00016999,2]
[350195509,1737684638339,-645.27,0.00016999,2]
[350195510,1737684638348,-500.0,0.00016999,2]
[350195511,1737684638358,-543.26832932,0.00016999,2]
[350195512,1737684638367,-600.44,0.00016999,2]
[350195513,1737684638376,-537.27756658,0.00016999,2]
[350195514,1737684638385,-500.0,0.00016999,2]
[350195515,1737684638395,-519.19269053,0.00016999,2]
[350195516,1737684638404,-500.0,0.00016999,2]
[350195517,1737684638413,-500.0,0.00016999,2]
[350195518,1737684638423,-535.87910128,0.00016999,2]
[350195519,1737684638432,-524.54615971,0.00016999,2]
[350195520,1737684638442,-500.0,0.00016999,2]
[350195521,1737684638452,-500.0,0.00016999,2]
[350195522,1737684638461,-601.9,0.00016999,2]
[350195523,1737684638471,-623.16,0.00016999,2]
[350195524,1737684638480,-500.0,0.00016999,2]
[350195525,1737684638490,-500.0,0.00016999,2]
[350195526,1737684638499,-646.64,0.00016999,2]
[350195527,1737684638508,-519.70856683,0.00016999,2]
[350195528,1737684638518,-500.0,0.00016999,2]
[350195529,1737684638528,-543.65798197,0.00016999,2]
[350195530,1737684638538,-528.99550863,0.00016999,2]
[350195531,1737684638547,-547.35329651,0.00016999,2]
[350195532,1737684638557,-500.0,0.00016999,2]
[350195533,1737684638567,-520.42241669,0.00016999,2]
[350195534,1737684638576,-500.0,0.00016999,2]
[350195535,1737684638586,-500.0,0.00016999,2]
[350195537,1737684638596,-529.13,0.00016999,2]
[350195538,1737684638605,-500.0,0.00016999,2]
[350195539,1737684638615,-500.0,0.00016999,2]
[350195540,1737684638625,-500.0,0.00016999,2]
[350195541,1737684638634,-698.37,0.00016999,2]
[350195542,1737684638643,-500.0,0.00016999,2]
[350195543,1737684638653,-500.0,0.00016999,2]
[350195544,1737684638662,-500.0,0.00016999,2]
[350195545,1737684638673,-500.0,0.00016999,2]
[350195546,1737684638683,-527.04613978,0.00016999,2]
[350195547,1737684638692,-500.0,0.00016999,2]
[350195548,1737684638702,-602.19,0.00016999,2]
[350195549,1737684638711,-506.06562962,0.00016999,2]
[350195550,1737684638721,-500.0,0.00016999,2]
[350195551,1737684638731,-500.0,0.00016999,2]
[350195553,1737684638740,-500.0,0.00016999,2]
[350195555,1737684638749,-500.0,0.00016999,2]
[350195557,1737684638758,-702.92,0.00016999,2]
[350195559,1737684638767,-503.2880188,0.00016999,2]
[350195561,1737684638776,-269.28549758,0.00017,2]
[350195563,1737684638785,-15279.58383306,0.00017,2]
[350195566,1737684638802,-3289.35959917,0.00017,2]
[350195568,1737684638821,-774.07610775,0.00017,2]
[350195569,1737684638853,-427.29772662,0.00017,2]
[350195570,1737684640294,-4053.89896807,0.00017,2]
[350195571,1737684640306,-542.59004501,0.00017,2]
[350195572,1737684640318,-15381.33123423,0.00017,2]
[350195573,1737684640381,-251.86248609,0.00017,2]
[350195574,1737684640391,-224.00781391,0.00017087,2]
[350195575,1737684640403,-459.95218609,0.00017087,2]
[350195576,1737684640412,-162.72,0.00017155,2]
[350195577,1737684640426,-162.72,0.00017172,2]
[350195578,1737684640435,-316.59024059,0.00017178,2]
[350195579,1737684640449,-319.19412175,0.00017178,2]
[350195580,1737684640458,-1736.26183535,0.00017178,2]
[350195581,1737684640468,-162.72,0.00017189,2]
[350195582,1737684640477,-772.97,0.00017205,2]
[350195583,1737684640487,-162.72,0.00017206,2]
[350195584,1737684640497,-162.72,0.00017223,2]
[350195585,1737684640507,-162.72,0.0001724,2]
[350195586,1737684640517,-531.08055039,0.00017273,2]
[350195587,1737684640527,-645.27,0.00017273,2]
[350195588,1737684640536,-500.0,0.00017273,2]
[350195589,1737684640546,-600.44,0.00017273,2]
[350195590,1737684640557,-500.0,0.00017273,2]
[350195591,1737684640567,-500.0,0.00017273,2]
[350195592,1737684640576,-500.0,0.00017273,2]
[350195593,1737684640586,-500.0,0.00017273,2]
[350195594,1737684640595,-342.21497547,0.00017273,2]
[350195595,1737684640605,-601.9,0.00017273,2]
[350195596,1737684640616,-623.16,0.00017273,2]
[350195597,1737684640625,-500.0,0.00017273,2]
[350195598,1737684640635,-353.65228776,0.00017273,2]
[350195599,1737684640645,-646.64,0.00017273,2]
[350195600,1737684640654,-177.73583582,0.00017273,2]
[350195602,1737684640664,-500.0,0.00017273,2]
[350195603,1737684640675,-500.0,0.00017273,2]
[350195605,1737684640684,-209.34849811,0.00017273,2]
[350195613,1737684640748,-64.31111601,0.00017273,2]
[350195615,1737684640757,-529.13,0.00017273,2]
[350195617,1737684640766,-500.0,0.00017273,2]
[350195619,1737684640776,-582.02932099,0.00017273,2]
[350195621,1737684640785,-500.0,0.00017273,2]
[350195623,1737684640795,-698.37,0.00017273,2]
[350195625,1737684640805,-602.67,0.00017273,2]
[350195627,1737684640814,-239.11,0.00017273,2]
[350195629,1737684640823,-500.0,0.00017273,2]
[350195631,1737684640832,-500.0,0.00017273,2]
[350195649,1737684641010,-500.0,0.00017273,2]
[350195651,1737684641021,-525.86411401,0.00017273,2]
[350195653,1737684641032,-500.0,0.00017273,2]
[350195655,1737684641041,-702.92,0.00017273,2]
[350195657,1737684641051,-3007.07,0.00017312,2]
[350195659,1737684641061,-444.46,0.00017341,2]
[350195661,1737684641070,-956.32265706,0.00017408,2]
[350195663,1737684641080,-635.78436234,0.00017456,2]
[350195665,1737684641090,-1736.26183535,0.00017456,2]
[350195667,1737684641100,-645.27,0.00017547,2]
[350195670,1737684641111,-408.52135028,0.00017547,2]
[350195672,1737684641120,-600.44,0.00017547,2]
[350195674,1737684641131,-500.0,0.00017547,2]
[350195676,1737684641142,-500.0,0.00017547,2]
[350195678,1737684641154,-500.0,0.00017547,2]
[350195680,1737684641164,-169.82134312,0.00017547,2]
[350195682,1737684641176,-601.9,0.00017547,2]
[350195684,1737684641187,-623.16,0.00017547,2]
[350195686,1737684641197,-500.0,0.00017547,2]
[350195688,1737684641207,-646.64,0.00017547,2]
[350195690,1737684641217,-500.0,0.00017547,2]
[350195692,1737684641229,-500.0,0.00017547,2]
[350195694,1737684641238,-477.63538564,0.00017547,2]
[350195696,1737684641250,-51.49461436,0.00017547,2]
[350195698,1737684641260,-259.00538564,0.00017547,2]
[350195700,1737684641271,-240.99461436,0.00017547,2]
[350195702,1737684641281,-215.88038564,0.00017547,2]
[350195706,1737684641299,-284.11961436,0.00017547,2]
[350195707,1737684641308,-698.37,0.00017547,2]
[350195709,1737684641318,-500.0,0.00017547,2]
[350195711,1737684641327,-500.0,0.00017547,2]
[350195713,1737684641336,-500.0,0.00017547,2]
[350195715,1737684641346,-500.0,0.00017547,2]
[350195717,1737684641355,-702.92,0.00017547,2]
[350195719,1737684641364,-529.85,0.00017597,2]
[350195721,1737684641374,-6978.0,0.00017721,2]
[350195723,1737684641383,-635.78436234,0.00017733,2]
[350195725,1737684641392,-1736.26183535,0.00017733,2]
[350195727,1737684641401,-10043.78,0.00017733,2]
[350195728,1737684641412,-645.27,0.00017821,2]
[350195731,1737684641423,-600.44,0.00017821,2]
[350195732,1737684641433,-500.0,0.00017821,2]
[350195734,1737684641442,-500.0,0.00017821,2]
[350195737,1737684641452,-500.0,0.00017821,2]
[350195739,1737684641462,-601.9,0.00017821,2]
[350195741,1737684641471,-623.16,0.00017821,2]
[350195743,1737684641482,-500.0,0.00017821,2]
[350195745,1737684641492,-646.64,0.00017821,2]
[350195747,1737684641501,-500.0,0.00017821,2]
[350195749,1737684641511,-500.0,0.00017821,2]
[350195751,1737684641520,-529.13,0.00017821,2]
[350195753,1737684641531,-320.37507766,0.00017821,2]
[350195755,1737684641540,-500.0,0.00017821,2]
[350195757,1737684641550,-698.37,0.00017821,2]
[350195759,1737684641559,-500.0,0.00017821,2]
[350195761,1737684641569,-462.83174346,0.00017821,2]
[350195763,1737684641578,-500.0,0.00017821,2]
[350195765,1737684641587,-702.92,0.00017821,2]
[350195767,1737684641597,-217.11482312,0.00017827,2]
[350195769,1737684641606,-160.916,0.0001786,2]
[350195771,1737684641615,-983.71868206,0.000179,2]
[350195773,1737684641625,-31580.2779,0.000179,2]
[350195775,1737684641634,-394.23,0.00017952,2]
[350195777,1737684641643,-172.69,0.00017991,2]
[350195779,1737684641652,-50000.0,0.00018,2]
[350195780,1737684641661,-269.0,0.00018,2]
[350195783,1737684641671,-635.78436234,0.00018011,2]
[350195784,1737684641680,-1736.26183535,0.00018011,2]
[350195786,1737684641690,-983.71868192,0.00018038,2]
[350195788,1737684641700,-4512.1796,0.0001804,2]
[350195791,1737684641709,-181.7947469,0.00018059,2]
[350195792,1737684641718,-900.0,0.00018068,2]
[350195794,1737684641728,-500.0,0.00018068,2]
[350195796,1737684641737,-1014.99,0.00018072,2]
[350195798,1737684641748,-389.47,0.00018082,2]
[350195800,1737684641757,-645.27,0.00018095,2]
[350195803,1737684641767,-600.44,0.00018095,2]
[350195805,1737684641777,-478.14152756,0.00018095,2]
[350195807,1737684641786,-500.0,0.00018095,2]
[350195808,1737684641796,-500.0,0.00018095,2]
[350195810,1737684641806,-601.9,0.00018095,2]
[350195812,1737684641816,-623.16,0.00018095,2]
[350195814,1737684641825,-181.03231962,0.00018095,2]
[350195816,1737684641835,-646.64,0.00018095,2]
[350195818,1737684641844,-500.0,0.00018095,2]
[350195820,1737684641853,-500.0,0.00018095,2]
[350195822,1737684641863,-529.13,0.00018095,2]
[350195824,1737684641872,-500.0,0.00018095,2]
[350195826,1737684641882,-698.37,0.00018095,2]
[350195828,1737684641891,-500.0,0.00018095,2]
[350195830,1737684641901,-500.0,0.00018095,2]
[350195832,1737684641910,-702.92,0.00018095,2]
[350195834,1737684641921,-3000.0,0.0001811,2]
[350195836,1737684641930,-190.26137434,0.0001813,2]
[350195838,1737684641939,-500.0,0.0001814,2]
[350195840,1737684641948,-549.10237855,0.0001814,2]
[350195842,1737684641957,-523.11086747,0.0001814,2]
[350195844,1737684641967,-500.0,0.0001814,2]
[350195846,1737684641976,-500.0,0.0001814,2]
[350195848,1737684641985,-500.0,0.0001814,2]
[350195850,1737684641995,-528.35273248,0.0001814,2]
[350195851,1737684642006,-617.29162793,0.0001814,2]
[350195852,1737684642015,-515.92545097,0.0001814,2]
[350195853,1737684642025,-526.66861273,0.0001814,2]
[350195854,1737684642034,-524.77330016,0.0001814,2]
[350195855,1737684642044,-527.37346684,0.0001814,2]
[350195856,1737684642054,-508.69267911,0.0001814,2]
[350195857,1737684642063,-511.5025075,0.0001814,2]
[350195858,1737684642072,-533.0687338,0.0001814,2]
[350195859,1737684642082,-522.35977278,0.0001814,2]
[350195860,1737684642092,-518.38225033,0.0001814,2]
[350195862,1737684642101,-502.60881132,0.0001814,2]
[350195863,1737684642110,-508.41397583,0.0001814,2]
[350195864,1737684642119,-502.94653432,0.0001814,2]
[350195865,1737684642129,-630.56475866,0.0001814,2]
[350195866,1737684642139,-500.0,0.0001814,2]
[350195867,1737684642152,-528.44524792,0.0001814,2]
[350195868,1737684642162,-278.34711252,0.0001814,2]
[350195869,1737684642172,-502.50825281,0.0001814,2]
[350195870,1737684642181,-544.08180056,0.0001814,2]
[350195871,1737684642191,-500.0,0.0001814,2]
[350195872,1737684642201,-515.47957594,0.0001814,2]
[350195873,1737684642211,-500.0,0.0001814,2]
[350195874,1737684642220,-517.56324965,0.0001814,2]
[350195875,1737684642231,-511.81665306,0.0001814,2]
[350195876,1737684642240,-517.1917018,0.0001814,2]
[350195877,1737684642249,-415.94853328,0.0001814,2]
[350195878,1737684642258,-513.35658913,0.0001814,2]
[350195879,1737684642268,-517.07842664,0.0001814,2]
[350195880,1737684642278,-514.07925327,0.0001814,2]
[350195881,1737684642287,-517.88999758,0.0001814,2]
[350195882,1737684642297,-500.0,0.0001814,2]
[350195883,1737684642306,-459.65930761,0.0001814,2]
[350195884,1737684642319,-40.34069239,0.0001814,2]
[350195885,1737684642329,-500.0,0.0001814,2]
[350195886,1737684642338,-521.770371,0.0001814,2]
[350195887,1737684642347,-520.15827649,0.0001814,2]
[350195888,1737684642356,-500.0,0.0001814,2]
[350195889,1737684642366,-500.0,0.0001814,2]
[350195890,1737684642375,-521.46592171,0.0001814,2]
[350195891,1737684642384,-511.08381361,0.0001814,2]
[350195892,1737684642395,-520.96052555,0.0001814,2]
[350195893,1737684642404,-500.0,0.0001814,2]
[350195894,1737684642413,-517.22150327,0.0001814,2]
[350195895,1737684642424,-500.0,0.0001814,2]
[350195896,1737684642434,-336.31946216,0.0001814,2]
[350195897,1737684642444,-500.0,0.0001814,2]
[350195898,1737684642453,-517.00568676,0.0001814,2]
[350195899,1737684642462,-533.59593588,0.0001814,2]
[350195900,1737684642471,-500.0,0.0001814,2]
[350195901,1737684642480,-520.053681,0.0001814,2]
[350195902,1737684642490,-515.44877711,0.0001814,2]
[350195903,1737684642498,-500.0,0.0001814,2]
[350195904,1737684642507,-544.06297021,0.0001814,2]
[350195905,1737684642516,-536.70158979,0.0001814,2]
[350195906,1737684642525,-511.24906601,0.0001814,2]
[350195907,1737684642535,-510.88655908,0.0001814,2]
[350195908,1737684642544,-500.0,0.0001814,2]
[350195909,1737684642552,-473.86337244,0.0001814,2]
[350195910,1737684642568,-518.38086747,0.0001814,2]
[350195911,1737684642577,-500.0,0.0001814,2]
[350195912,1737684642586,-500.0,0.0001814,2]
[350195913,1737684642595,-535.75499575,0.0001814,2]
[350195914,1737684642605,-500.0,0.0001814,2]
[350195915,1737684642614,-542.95542151,0.0001814,2]
[350195916,1737684642623,-541.87126692,0.0001814,2]
[350195917,1737684642633,-500.0,0.0001814,2]
[350195918,1737684642644,-524.5441902,0.0001814,2]
[350195919,1737684642654,-500.0,0.0001814,2]
[350195920,1737684642663,-287.96906701,0.0001814,2]
[350195921,1737684642675,-500.0,0.0001814,2]
[350195922,1737684642684,-532.49479729,0.0001814,2]
[350195923,1737684642693,-501.49025642,0.0001814,2]
[350195924,1737684642703,-549.36799481,0.0001814,2]
[350195925,1737684642712,-500.0,0.0001814,2]
[350195926,1737684642723,-500.0,0.0001814,2]
[350195927,1737684642733,-500.0,0.0001814,2]
[350195928,1737684642742,-502.61034102,0.0001814,2]
[350195929,1737684642752,-500.0,0.0001814,2]
[350195930,1737684642766,-525.06753352,0.0001814,2]
[350195931,1737684642779,-500.0,0.0001814,2]
[350195932,1737684642792,-500.0,0.0001814,2]
[350195933,1737684642805,-512.0278662,0.0001814,2]
[350195934,1737684642815,-521.6762229,0.0001814,2]
[350195935,1737684642826,-500.0,0.0001814,2]
[350195936,1737684642837,-500.0,0.0001814,2]
[350195937,1737684642848,-500.0,0.0001814,2]
[350195938,1737684642860,-560.37007578,0.0001814,2]
[350195939,1737684642872,-177.98695455,0.0001814,2]
[350195940,1737684642883,-500.0,0.0001814,2]
[350195941,1737684642895,-500.0,0.0001814,2]
[350195942,1737684642906,-531.97877392,0.0001814,2]
[350195943,1737684642918,-527.28033744,0.0001814,2]
[350195944,1737684642934,-537.49508849,0.0001814,2]
[350195945,1737684642945,-328.870658,0.0001814,2]
[350195946,1737684642956,-523.14506287,0.0001814,2]
[350195947,1737684642967,-500.0,0.0001814,2]
[350195948,1737684642978,-583.98808234,0.0001814,2]
[350195949,1737684642989,-163.902064,0.0001814,2]
[350195950,1737684642999,-500.0,0.0001814,2]
[350195951,1737684643010,-500.0,0.0001814,2]
[350195952,1737684643022,-160.690755,0.0001814,2]
[350195953,1737684643034,-528.77101687,0.0001814,2]
[350195954,1737684643046,-607.88075453,0.0001814,2]
[350195956,1737684643058,-515.385928,0.0001814,2]
[350195957,1737684643070,-500.0,0.0001814,2]
[350195958,1737684643082,-500.0,0.0001814,2]
[350195959,1737684643094,-520.0696864,0.0001814,2]
[350195960,1737684643106,-507.47336238,0.0001814,2]
[350195961,1737684643118,-500.0,0.0001814,2]
[350195962,1737684643129,-838.346697,0.0001814,2]
[350195963,1737684643142,-500.0,0.0001814,2]
[350195964,1737684643155,-500.0,0.0001814,2]
[350195965,1737684643167,-515.92673649,0.0001814,2]
[350195966,1737684643192,-500.0,0.0001814,2]
[350195967,1737684643203,-563.67,0.0001814,2]
[350195968,1737684643216,-500.0,0.0001814,2]
[350195969,1737684643228,-812.9,0.0001814,2]
[350195970,1737684643240,-501.57,0.0001814,2]
[350195971,1737684643253,-596.51409276,0.0001814,2]
[350195972,1737684643265,-500.0,0.0001814,2]
[350195973,1737684643277,-500.0,0.0001814,2]
[350195974,1737684643289,-500.0,0.0001814,2]
[350195975,1737684643302,-500.0,0.0001814,2]
[350195976,1737684643314,-500.0,0.0001814,2]
[350195977,1737684643326,-528.26452836,0.0001814,2]
[350195978,1737684643337,-500.0,0.0001814,2]
[350195979,1737684643348,-511.68766204,0.0001814,2]
[350195980,1737684643360,-544.47286487,0.0001814,2]
[350195981,1737684643372,-521.05659094,0.0001814,2]
[350195982,1737684643382,-1228.35,0.0001814,2]